fUST/lending_fUST_20250928
["ID","MTS","AMOUNT","RATE_DAILY","PERIOD"]
[388045751,1758989036996,-5000.0,0.00024456,2]
[388045753,1758989138117,-609.17262836,0.00024703,2]
[388045754,1758989234119,-153.02773806,0.00024703,2]
[388045758,1758989287876,-5000.0,0.00024456,2]
[388045759,1758989307869,0.01,0.00024456,2]
[388045760,1758989307891,4999.99,0.00024456,2]
[388045761,1758989331667,2059.59856098,0.00024456,2]
[388045762,1758989350106,-269.7412961,0.00024703,2]
[388045763,1758989350128,-517.75355587,0.00024953,2]
[388045764,1758989350150,-521.240613,0.00029162,2]
[388045765,1758989350171,-666.0,0.00029559,2]
[388045803,1758989432407,-189.2787965,0.00029724,2]
[388045805,1758989432418,-400.0,0.00030458,2]
[388045807,1758989432427,-9011.3092208,0.00030459,2]
[388045809,1758989432437,-1000.0,0.00030795,30]
[388045811,1758989432447,-189.48145,0.00030858,60]
[388045813,1758989432457,-200.0,0.0003127,15]
[388045815,1758989432466,-3576.24526833,0.00031361,2]
[388045817,1758989432476,-500.0,0.00031361,2]
[388045819,1758989432486,-153.13388744,0.00031361,2]
[388045822,1758989432496,-385.53349166,0.00031361,2]
[388045825,1758989432505,-500.0,0.00031361,2]
[388045828,1758989432515,-500.0,0.00031361,2]
[388045831,1758989432525,-524.42791637,0.00031361,2]
[388045835,1758989432535,-500.0,0.00031361,2]
[388045838,1758989432544,-500.0,0.00031361,2]
[388045841,1758989432553,-500.0,0.00031361,2]
[388045844,1758989432563,-382.28901574,0.00031361,2]
[388045847,1758989432573,-500.0,0.00031361,2]
[388045849,1758989432584,-213.36141825,0.00031361,2]
[388046081,1758989438747,-286.63858175,0.00031361,2]
[388046082,1758989438756,-229.43001719,0.00031361,2]
[388046083,1758989438765,-500.0,0.00031361,2]
[388046084,1758989438775,-500.0,0.00031361,2]
[388046085,1758989438787,-500.0,0.00031361,2]
[388046086,1758989438796,-500.0,0.00031361,2]
[388046087,1758989438806,-342.34975798,0.00031361,2]
[388046088,1758989438950,-157.65024202,0.00031361,2]
[388046089,1758989438963,-500.0,0.00031361,2]
[388046090,1758989438973,-500.0,0.00031361,2]
[388046091,1758989438983,-500.0,0.00031361,2]
[388046092,1758989438992,-500.0,0.00031361,2]
[388046093,1758989439002,-500.0,0.00031361,2]
[388046094,1758989439012,-500.0,0.00031361,2]
[388046095,1758989439022,-500.0,0.00031361,2]
[388046096,1758989439032,-159.099,0.00031365,29]
[388046097,1758989439042,-174.00897462,0.000319,2]
[388046098,1758989439051,-600.0,0.0003199,30]
[388046099,1758989439061,-177.4108125,0.00032,120]
[388046100,1758989439071,-203.44963791,0.00032,120]
[388046101,1758989439081,-170.71842006,0.00032,120]
[388046102,1758989439090,-163.18138539,0.00032,120]
[388046103,1758989439100,-410.0,0.00032067,2]
[388046104,1758989439110,-150.0,0.00032701,2]
[388046105,1758989439120,-1897.939,0.00032701,2]
[388046106,1758989439129,-630.644,0.00032701,2]
[388046107,1758989439138,-4588.0,0.00032766,2]
[388046108,1758989439148,-405.43,0.00032777,2]
[388046109,1758989439159,-200.0,0.00032811,2]
[388046110,1758989439169,-434.908165,0.00032877,2]
[388046111,1758989439178,-224.32238904,0.00033093,2]
[388046112,1758989439188,-184.7272316,0.00033094,2]
[388046113,1758989439198,-500.0,0.00033173,5]
[388046114,1758989439208,-500.0,0.00033173,5]
[388046115,1758989439218,-500.0,0.00033173,5]
[388046116,1758989439228,-500.0,0.00033173,5]
[388046117,1758989439239,-169.51,0.00033184,3]
[388046118,1758989439248,-508.58,0.00033184,3]
[388046119,1758989439258,-151.0,0.00033184,3]
[388046120,1758989439267,-151.0,0.00033184,5]
[388046121,1758989439278,-562.0,0.00033184,5]
[388046122,1758989439287,-308.82065802,0.00033193,7]
[388046123,1758989439297,-609.16502761,0.00033193,7]
[388046124,1758989439307,-88037.61405647,0.00033193,20]
[388046139,1758989440362,-109.45046304,0.00033193,20]
[388046173,1758989446439,-151.0,0.00033184,5]
[388046174,1758989446448,-4490.49148025,0.00033193,20]
[388046186,1758989448122,-934.32829393,0.00033193,20]
[388046187,1758989546287,167.243571,0.00015593,2]
[388046193,1758989755704,591.92,0.00025205,2]
[388046194,1758989763665,300.0,0.00025204,2]
[388046195,1758989793198,4024.47,0.00025205,2]
[388046196,1758989822988,300.0,0.00025204,2]
[388046197,1758990331988,245.42576699,0.00025205,2]
[388046198,1758990339984,2810.49692157,0.00025205,2]
[388046199,1758990348235,5000.0,0.00025205,2]
[388046200,1758990356072,1944.08731144,0.00025205,2]
[388046201,1758990356095,3055.91268856,0.00025205,2]
[388046202,1758990360232,533.89623038,0.00025205,2]
[388046203,1758990363859,300.0,0.00025204,2]
[388046204,1758990364443,5000.0,0.00025205,2]
[388046205,1758990372255,512.59083773,0.00025205,2]
[388046206,1758990380962,5000.0,0.00025205,2]
[388046207,1758990388865,5000.0,0.00025205,2]
[388046208,1758990394643,156.0,0.00024384,13]
[388046209,1758990396900,5000.0,0.00025205,2]
[388046210,1758990400075,178.93483311,0.00025105,2]
[388046211,1758990405273,3871.05264081,0.00025205,2]
[388046213,1758990413761,5000.0,0.00025205,2]
[388046226,1758990422206,5000.0,0.00025205,2]
[388046230,1758990423399,0.01,0.00025204,2]
[388046231,1758990423458,-299.99,0.00025204,2]
[388046232,1758990426429,3130.91311662,0.00025104,2]
[388046233,1758990437563,5000.0,0.00025205,2]
[388046234,1758990439957,1200.0,0.00025204,2]
[388046235,1758990442372,69.11688338,0.00025199,2]
[388046236,1758990442394,361.88065734,0.00025199,2]
[388046237,1758990445518,5000.0,0.00025205,2]
[388046238,1758990453567,182.5258603,0.00025205,2]
[388046239,1758990455183,217.7572675,0.00025105,2]
[388046240,1758990462000,5000.0,0.00025205,2]
[388046243,1758990491835,10000.0,0.00021,5]
[388046244,1758990492671,0.01,0.00010618,2]
[388046245,1758990492695,419.20045963,0.00010618,2]
[388046246,1758990494650,2000.0,0.000125,2]
[388046247,1758990499180,167.19295,0.00012105,2]
[388046248,1758990502085,344.6163723,0.00024193,2]
[388046249,1758990511779,3948.6019192,0.0002219,2]
[388046250,1758990515003,2212.20418553,0.00015,2]
[388046251,1758990515449,1370.12795388,0.0002061,2]
[388046253,1758990518573,2390.665,0.00023,3]
[388046254,1758990518911,1885.29884365,0.0002,120]
[388046255,1758990519195,452.99999922,0.0003319,120]
[388046256,1758990523173,78.41094139,0.000203,2]
[388046257,1758990523197,1231.58919841,0.000203,2]
[388046258,1758990523259,2380.70115148,0.000215,2]
[388046263,1758990529933,1064.3909155,0.00023882,2]
[388046268,1758990550150,-5000.0,0.00024526,2]
[388046269,1758990550172,-300.0,0.00024649,2]
[388046270,1758990550192,-4178.28956937,0.0002465,2]
[388046271,1758990570714,5000.0,0.00024211,2]
[388046273,1758990593323,5000.0,0.00024211,2]
[388046274,1758990597886,598.834691,0.00023988,2]
[388046275,1758990603955,-300.0,0.00024649,2]
[388046276,1758990603984,-300.0,0.00024649,2]
[388046277,1758990604013,-300.0,0.00024649,2]
[388046278,1758990604476,-300.0,0.00024649,2]
[388046279,1758990604506,-1200.0,0.00024649,2]
[388046280,1758990604594,-300.0,0.00024649,2]
[388046281,1758990604604,-2553.61091837,0.0002465,2]
[388046282,1758990604695,-10000.01,0.0002465,2]
[388046283,1758990604968,-10000.01,0.0002465,2]
[388046284,1758990605079,-10000.01,0.0002465,2]
[388046285,1758990605246,-10000.01,0.0002465,2]
[388046286,1758990605434,-10000.01,0.0002465,2]
[388046287,1758990605599,-10000.01,0.0002465,2]
[388046288,1758990605790,-10000.01,0.0002465,2]
[388046290,1758990614326,170.127401,0.00023986,2]
[388046291,1758990614427,-10000.01,0.0002465,2]
[388046292,1758990614716,-10000.01,0.0002465,2]
[388046293,1758990614898,-10000.01,0.0002465,2]
[388046294,1758990615071,-10000.01,0.0002465,2]
[388046295,1758990615238,-4445.21088854,0.0002465,2]
[388046296,1758990615262,-1109.58822292,0.0002465,2]
[388046297,1758990615413,-160.0,0.0002465,2]
[388046298,1758990615458,-9680.01,0.00024774,2]
[388046299,1758990624026,-5000.0,0.00024403,2]
[388046300,1758990624076,-0.01,0.00024773,2]
[388046301,1758990624374,-499.99,0.00024773,2]
[388046302,1758990624404,-500.0,0.00024773,2]
[388046303,1758990624433,-500.0,0.00024773,2]
[388046304,1758990624465,-546.00329714,0.00024773,2]
[388046305,1758990624567,-5908.02340572,0.00024774,2]
[388046354,1758990632621,-258.79253667,0.00024773,2]
[388046361,1758990632676,-241.20746333,0.00024773,2]
[388046363,1758990632686,-500.0,0.00024773,2]
[388046365,1758990632696,-500.0,0.00024773,2]
[388046367,1758990632706,-500.0,0.00024773,2]
[388046369,1758990632715,-500.0,0.00024773,2]
[388046371,1758990632725,-500.0,0.00024773,2]
[388046373,1758990632734,-500.0,0.00024773,2]
[388046374,1758990632743,-500.0,0.00024773,2]
[388046376,1758990632753,-500.0,0.00024773,2]
[388046378,1758990632762,-500.0,0.00024773,2]
[388046380,1758990632776,-500.0,0.00024773,2]
[388046382,1758990632785,-500.0,0.00024773,2]
[388046385,1758990632795,-500.0,0.00024773,2]
[388046387,1758990632803,-500.0,0.00024773,2]
[388046388,1758990632812,-500.0,0.00024773,2]
[388046390,1758990632822,-500.0,0.00024773,2]
[388046392,1758990632831,-500.0,0.00024773,2]
[388046394,1758990632840,-500.0,0.00024773,2]
[388046397,1758990632850,-500.0,0.00024773,2]
[388046398,1758990632860,-500.0,0.00024773,2]
[388046401,1758990632870,-500.0,0.00024773,2]
[388046402,1758990632879,-500.0,0.00024773,2]
[388046405,1758990632889,-500.0,0.00024773,2]
[388046406,1758990632898,-500.0,0.00024773,2]
[388046408,1758990632912,-500.0,0.00024773,2]
[388046410,1758990632930,-500.0,0.00024773,2]
[388046412,1758990632949,-500.0,0.00024773,2]
[388046414,1758990632967,-500.0,0.00024773,2]
[388046416,1758990632978,-500.0,0.00024773,2]
[388046418,1758990632988,-239.63606185,0.00024773,2]
[388046420,1758990632999,-500.0,0.00024773,2]
[388046422,1758990633008,-500.0,0.00024773,2]
[388046424,1758990633017,-500.0,0.00024773,2]
[388046426,1758990633027,-500.0,0.00024773,2]
[388046428,1758990633036,-500.0,0.00024773,2]
[388046430,1758990633046,-500.0,0.00024773,2]
[388046431,1758990633055,-500.0,0.00024773,2]
[388046432,1758990633064,-500.0,0.00024773,2]
[388046433,1758990633074,-500.0,0.00024773,2]
[388046434,1758990633083,-500.0,0.00024773,2]
[388046435,1758990633091,-1026.57362862,0.00024774,2]
[388046436,1758990633100,-1738.05670371,0.000248,4]
[388046437,1758990633109,-1135.4993495,0.00024953,2]
[388046582,1758990638510,-5000.0,0.00024703,2]
[388046583,1758990638520,-2450.23018904,0.00024953,2]
[388046584,1758990638531,-1294.93,0.0002499,3]
[388046585,1758990638540,-1688.2,0.0002499,3]
[388046586,1758990638549,-2905.76498475,0.00025,3]
[388046587,1758990638559,-12307.50355098,0.00025,2]
[388046588,1758990638570,-7094.42884097,0.00025,2]
[388046589,1758990638580,-10364.0,0.00025,2]
[388046590,1758990638590,-209.37563157,0.00025,2]
[388046592,1758990638599,-361.57957058,0.00025,2]
[388046594,1758990638608,-150.0,0.00025,2]
[388046596,1758990638618,-500.0,0.00025,2]
[388046598,1758990638627,-1173.03223592,0.00025,2]
[388046599,1758990638637,-475.59211179,0.00025,5]
[388046601,1758990638648,-600.0,0.00025,2]
[388046603,1758990638659,-50000.0,0.00025,2]
[388046605,1758990638670,-200.0,0.00025,10]
[388046608,1758990638683,-200.0,0.00025,10]
[388046610,1758990638693,-200.0,0.00025,10]
[388046612,1758990638704,-200.0,0.00025,10]
[388046614,1758990638714,-200.0,0.00025,10]
[388046615,1758990638724,-200.0,0.00025,10]
[388046617,1758990638734,-200.0,0.00025,10]
[388046619,1758990638743,-200.0,0.00025,10]
[388046621,1758990638754,-200.0,0.00025,10]
[388046623,1758990638763,-200.0,0.00025,10]
[388046625,1758990638779,-200.0,0.00025,10]
[388046627,1758990638789,-200.0,0.00025,10]
[388046628,1758990638799,-200.0,0.00025,10]
[388046629,1758990638810,-200.0,0.00025,10]
[388046630,1758990638820,-247.465403,0.00025,10]
[388046631,1758990638830,-500.0,0.00025,3]
[388046632,1758990638841,-150.0,0.00025184,2]
[388046633,1758990638852,-5000.0,0.00025205,2]
[388046634,1758990638862,-29571.17247572,0.00025205,2]
[388046636,1758990638872,-500.0,0.00025274,3]
[388046638,1758990638882,-844.1,0.0002529,3]
[388046640,1758990638890,-500.0,0.00025299,2]
[388046641,1758990638899,-500.0,0.00025299,2]
[388046642,1758990638908,-517.88366444,0.000253,2]
[388046643,1758990638918,-9662.72,0.000253,3]
[388046644,1758990638930,-160.0,0.000253,3]
[388046645,1758990638939,-500.0,0.00025548,3]
[388046647,1758990638949,-150.0,0.00025591,2]
[388046648,1758990638959,-422.05,0.0002579,3]
[388046649,1758990638970,-4309.05640105,0.000258,2]
[388046651,1758990638980,-168.14155307,0.00025999,2]
[388046654,1758990638990,-206.8266531,0.00026004,2]
[388046656,1758990639000,-2589.86,0.0002636,3]
[388046658,1758990639010,-3376.4,0.0002636,3]
[388046659,1758990639019,-1688.2,0.0002666,3]
[388046661,1758990639027,-300.0,0.00026713,2]
[388046663,1758990639036,-300.0,0.00026713,2]
[388046665,1758990639045,-420.0,0.00026713,2]
[388046667,1758990639055,-261.0,0.00026713,2]
[388046669,1758990639064,-1680.0,0.00026834,2]
[388046671,1758990639074,-172.0,0.00027123,23]
[388046673,1758990639083,-844.1,0.0002716,3]
[388046675,1758990639093,-159.099,0.00027218,15]
[388046677,1758990639102,-1680.0,0.00027299,2]
[388046679,1758990639112,-170.127401,0.0002741,60]
[388046681,1758990639123,-1549.1636807,0.0002799,2]
[388046683,1758990639133,-5000.0,0.0002869,2]
[388046685,1758990639143,-260.620306,0.0002869,2]
[388046687,1758990639153,-6839.48252443,0.00028719,2]
[388046689,1758990639162,-41466.9785981,0.00028729,2]
[388046691,1758990639172,-160.0,0.00028767,2]
[388046693,1758990639183,-587.0,0.00028949,2]
[388046695,1758990639194,-10618.50445669,0.00029,3]
[388046697,1758990639205,-426.0,0.00029213,2]
[388046699,1758990639215,-260.0,0.00029315,2]
[388046701,1758990639225,-1920.0,0.00029567,2]
[388046703,1758990639234,-360.0,0.00029863,2]
[388046705,1758990639243,-1000.0,0.00030106,14]
[388046707,1758990639252,-346.1916565,0.0003032,2]
[388046708,1758990639262,-177.0,0.00030411,40]
[388046711,1758990639272,-460.0,0.00030411,2]
[388046713,1758990639282,-151.0,0.00030458,14]
[388046714,1758990639292,-170.127401,0.00030835,60]
[388046716,1758990639302,-560.0,0.00030958,2]
[388046718,1758990639312,-1000.0,0.00031009,30]
[388046721,1758990639321,-823.0,0.00031373,2]
[388046723,1758990639331,-200.54931973,0.00031501,2]
[388046725,1758990639341,-660.0,0.00031506,2]
[388046726,1758990639351,-500.0,0.0003162,5]
[388046728,1758990639361,-2161.0,0.0003172,2]
[388046730,1758990639371,-177.4108125,0.00032,120]
[388046732,1758990639381,-169.62692055,0.00032,120]
[388046734,1758990639391,-170.71842005,0.00032,120]
[388046735,1758990639401,-760.0,0.00032054,2]
[388046736,1758990639410,-1000.0,0.00032168,5]
[388046737,1758990639419,-433.88224987,0.00032192,2]
[388046738,1758990639430,-153.11843365,0.00032194,10]
[388046739,1758990639439,-151.0,0.000324,16]
[388046740,1758990639449,-979.0,0.00032421,2]
[388046741,1758990639458,-410.0,0.00032421,2]
[388046742,1758990639468,-635.0,0.00032421,2]
[388046743,1758990639477,-500.0,0.00032558,5]
[388046744,1758990639487,-500.0,0.00032558,5]
[388046745,1758990639496,-500.0,0.00032558,5]
[388046746,1758990639506,-860.0,0.00032602,2]
[388046747,1758990639515,-1500.0,0.00032716,5]
[388046748,1758990639524,-2898.0,0.00032716,7]
[388046749,1758990639533,-413.162756,0.00032877,2]
[388046750,1758990639542,-4588.0,0.0003293,2]
[388046751,1758990639552,-225.08674394,0.00033,13]
[388046752,1758990639561,-4240.7843551,0.00033025,2]
[388046753,1758990639571,-160.0,0.00033039,2]
[388046754,1758990639580,-8329.0577452,0.00033082,2]
[388046755,1758990639590,-6839.48252443,0.00033083,2]
[388046756,1758990639600,-184.7272316,0.00033087,2]
[388046757,1758990639609,-502.92519722,0.00033087,12]
[388046758,1758990639618,-17694.06969257,0.00033093,2]
[388046759,1758990639627,-1518.57899164,0.000331,60]
[388046760,1758990639638,-1000.0,0.00033106,5]
[388046761,1758990639647,-1000.0,0.00033106,5]
[388046762,1758990639657,-1000.0,0.00033106,5]
[388046763,1758990639666,-960.0,0.0003315,2]
[388046764,1758990639675,-1000.0,0.0003317,2]
[388046765,1758990639686,-151.0,0.0003317,2]
[388046766,1758990639694,-500.0,0.00033173,5]
[388046767,1758990639704,-500.0,0.00033173,5]
[388046768,1758990639714,-500.0,0.00033173,5]
[388046769,1758990639723,-500.0,0.00033173,5]
[388046770,1758990639732,-500.0,0.00033173,5]
[388046771,1758990639743,-500.0,0.00033173,5]
[388046772,1758990639752,-500.0,0.00033173,5]
[388046773,1758990639761,-500.0,0.00033173,5]
[388046774,1758990639773,-500.0,0.00033173,3]
[388046775,1758990639784,-6839.48252443,0.0003318,2]
[388046776,1758990639794,-339.02,0.00033182,3]
[388046777,1758990639803,-616.5195758,0.00033187,2]
[388046778,1758990639814,-7680.60878971,0.00033187,30]
[388046779,1758990639824,-2000.0,0.00033187,30]
[388046780,1758990639834,-752.0,0.00033187,30]
[388046781,1758990639843,-91283.49357504,0.00033187,2]
[388046782,1758990639857,-300.0,0.00033187,2]
[388046784,1758990639866,-3882.73654418,0.00033187,2]
[388046786,1758990639875,-809.96302409,0.00033187,2]
[388046787,1758990639888,-258.28408775,0.00033187,2]
[388046788,1758990639897,-296.97300396,0.00033187,2]
[388046789,1758990639906,-327.11359133,0.00033187,2]
[388046790,1758990639915,-291.94107424,0.00033187,2]
[388046791,1758990639923,-51753.86847042,0.00033187,2]
[388046792,1758990639933,-637.44118038,0.00033187,2]
[388046793,1758990639942,-1362.26820816,0.00033187,2]
[388046794,1758990639951,-156.66903588,0.00033187,2]
[388046795,1758990639959,-6295.86485753,0.00033187,2]
[388046796,1758990639968,-157.6792694,0.00033187,2]
[388046798,1758990639976,-1717.45149075,0.00033187,2]
[388046799,1758990639985,-2076.56451878,0.00033187,2]
[388046800,1758990639994,-276.8200578,0.00033187,2]
[388046801,1758990640003,-507.74729944,0.00033187,2]
[388046802,1758990640012,-468.00301122,0.00033187,2]
[388046803,1758990640022,-83911.9355927,0.00033187,2]
[388046804,1758990640030,-179.35609289,0.00033187,2]
[388046805,1758990640039,-189.22979494,0.00033187,2]
[388046806,1758990640048,-1397.31875854,0.00033187,2]
[388046807,1758990640057,-5896.44414982,0.00033187,2]
[388046808,1758990640065,-651.39901302,0.00033187,2]
[388046809,1758990640075,-166.70576063,0.00033187,2]
[388046811,1758990640085,-369325.9966261,0.00033187,20]
[388046812,1758990640094,-3093.82852739,0.00033187,7]
[388046813,1758990640103,-684721.62440528,0.00033187,20]
[388046814,1758990640111,-6940.83576083,0.00033187,2]
[388046815,1758990640119,-375.87799197,0.00033187,2]
[388046816,1758990640126,-151.0,0.00033187,7]
[388046817,1758990640134,-151.0,0.00033187,7]
[388046818,1758990640143,-151.0,0.00033187,7]
[388046819,1758990640151,-151.0,0.00033187,7]
[388046820,1758990640157,-151.0,0.00033187,7]
[388046821,1758990640164,-151.0,0.00033187,7]
[388046822,1758990640173,-294.941902,0.00033187,7]
[388046823,1758990640180,-151.0,0.00033187,7]
[388046824,1758990640188,-151.0,0.00033187,7]
[388046825,1758990640197,-151.0,0.00033187,7]
[388046827,1758990640207,-151.0,0.00033187,7]
[388046829,1758990640216,-151.0,0.00033187,7]
[388046830,1758990640226,-151.0,0.00033187,7]
[388046831,1758990640235,-155.416659,0.00033187,7]
[388046833,1758990640244,-151.0,0.00033187,7]
[388046835,1758990640253,-155.416659,0.00033187,7]
[388046836,1758990640263,-151.0,0.00033187,7]
[388046837,1758990640273,-155.416659,0.00033187,7]
[388046838,1758990640282,-155.416659,0.00033187,7]
[388046839,1758990640291,-151.0,0.00033187,7]
[388046840,1758990640299,-151.0,0.00033187,7]
[388046841,1758990640308,-151.0,0.00033187,7]
[388046842,1758990640317,-151.0,0.00033187,7]
[388046843,1758990640326,-151.0,0.00033187,7]
[388046844,1758990640335,-151.0,0.00033187,7]
[388046845,1758990640343,-151.0,0.00033187,7]
[388046846,1758990640353,-1275.98527278,0.00033187,7]
[388046847,1758990640366,-8724.01472722,0.00033187,7]
[388046848,1758990640376,-151.0,0.00033187,7]
[388046849,1758990640385,-10000.0,0.00033187,7]
[388046850,1758990640395,-10000.0,0.00033187,7]
[388046851,1758990640404,-10000.0,0.00033187,7]
[388046852,1758990640414,-10000.0,0.00033187,7]
[388046853,1758990640423,-10000.0,0.00033187,7]
[388046854,1758990640433,-10000.0,0.00033187,7]
[388046855,1758990640442,-10000.0,0.00033187,7]
[388046856,1758990640451,-151.0,0.00033187,7]
[388046857,1758990640460,-10000.0,0.00033187,7]
[388046858,1758990640469,-151.0,0.00033187,7]
[388046859,1758990640478,-151.0,0.00033187,7]
[388046860,1758990640488,-151.0,0.00033187,7]
[388046861,1758990640497,-151.0,0.00033187,7]
[388046862,1758990640506,-151.0,0.00033187,7]
[388046863,1758990640516,-10000.0,0.00033187,7]
[388046864,1758990640525,-10000.0,0.00033187,7]
[388046865,1758990640534,-10000.0,0.00033187,7]
[388046866,1758990640544,-151.0,0.00033187,7]
[388046867,1758990640553,-151.0,0.00033187,7]
[388046868,1758990640562,-151.0,0.00033187,7]
[388046869,1758990640571,-10000.0,0.00033187,7]
[388046870,1758990640580,-7634.34988116,0.00033187,7]
[388046876,1758990641447,-211.03,0.0002635,3]
[388046877,1758990641456,-422.06,0.0002772,3]
[388046878,1758990641466,-324.0,0.0003256,2]
[388046879,1758990641475,-650.82928709,0.00033187,7]
[388046918,1758990643583,-186.57029197,0.0002489,2]
[388046919,1758990643593,-324.0,0.00032296,2]
[388046920,1758990643603,-163.070301,0.0003235,10]
[388046921,1758990643613,-380.45940703,0.00033187,7]
[388046922,1758990643638,-1167.02505938,0.00033187,7]
[388046923,1758990646432,-167.33636534,0.00033187,7]
[388046924,1758990646443,-167.973554,0.00033187,7]
[388046925,1758990646452,-1098.84008116,0.00033187,7]
[388046932,1758990689143,182.0,9.1e-07,2]
[388046933,1758990690388,182.0,9.1e-07,2]
[388046934,1758990754322,300.0,0.000166,2]
[388046935,1758990764648,-5000.0,0.00024641,2]
[388046936,1758990766610,0.01,0.000137,2]
[388046937,1758990766631,299.99,0.000137,2]
[388046940,1758990774748,5000.0,0.00024641,2]
[388046941,1758990777654,300.0,0.000137,2]
[388046942,1758990789746,300.0,0.000137,2]
[388046943,1758990798012,4100.02,0.00024641,2]
[388046944,1758990798035,899.98,0.00024641,2]
[388046945,1758990801075,300.0,0.000137,2]
[388046946,1758990807310,300.0,0.000166,2]
[388046947,1758990809877,300.0,0.000166,2]
[388046948,1758990817968,300.0,0.000137,2]
[388046949,1758990820716,5000.0,0.00024641,2]
[388046950,1758990821733,300.0,0.000137,2]
[388046951,1758990828771,300.0,0.000137,2]
[388046952,1758990831362,1000.0,0.00024188,2]
[388046953,1758990832233,300.0,0.000137,2]
[388046954,1758990840741,300.0,0.000137,2]
[388046955,1758990842820,3808.25988099,0.00024641,2]
[388046956,1758990843538,300.0,0.000137,2]
[388046957,1758990851008,5000.0,0.00024641,2]
[388046958,1758990851340,300.0,0.000137,2]
[388046959,1758990854961,291.75011901,0.000137,2]
[388046960,1758990854982,8.24988099,0.000137,2]
[388046961,1758990859355,5000.0,0.00024641,2]
[388046962,1758990867217,5000.0,0.00024641,2]
[388046963,1758990874329,0.01,0.0002455,2]
[388046964,1758990874349,204.58895898,0.0002455,2]
[388046965,1758990875928,5000.0,0.00024641,2]
[388046966,1758990883789,5000.0,0.00024641,2]
[388046967,1758990900447,2536.0518383,0.00024211,2]
[388046968,1758990909122,5000.0,0.00024211,2]
[388046969,1758990916134,1500.0,0.00023997,2]
[388046970,1758990929330,-5000.0,0.00024453,2]
[388046971,1758990931977,0.01,0.00024211,2]
[388046972,1758990931998,4999.99,0.00024211,2]
[388046973,1758990940521,5000.0,0.00024453,2]
[388046974,1758990956458,0.02,0.00024453,2]
[388046975,1758990956482,4999.98,0.00024453,2]
[388046976,1758990980325,5000.0,0.00024453,2]
[388046977,1758990995543,153.0,9.1e-07,2]
[388046978,1758990999054,-500.0,0.000247,2]
[388046979,1758991003133,1735.42282431,0.00024453,2]
[388046981,1758991051215,7264.58717569,0.00024037,2]
[388046982,1758991051237,10000.01,0.00024037,2]
[388046983,1758991051258,1960.98018141,0.00024037,2]
[388046984,1758991070023,5000.0,0.000247,2]
[388046985,1758991077900,2041.70900984,0.000247,2]
[388046986,1758991080045,404.78,0.00018182,5]
[388046987,1758991080321,404.78,0.00018182,5]
[388046988,1758991093238,5000.0,0.000247,2]
[388046989,1758991097701,550.0,0.000247,2]
[388046990,1758991101091,4045.23,0.000247,2]
[388046991,1758991101117,954.77,0.000247,2]
[388046992,1758991110225,5000.0,0.000247,2]
[388046993,1758991113582,300.0,0.000182,2]
[388046994,1758991118809,3745.24,0.000247,2]
[388046995,1758991118834,1254.76,0.000247,2]
[388046996,1758991119311,-169.74315109,0.00024897,2]
[388046997,1758991124475,300.0,0.000182,2]
[388046998,1758991127474,5000.0,0.00024897,2]